Cogmind - Beta 15 @@@ ROGUE MODE // 2025.05.18 @ 07:05:23 Player: Cereal Killer Result: Destroyed by BS-FIV(R) with Subdweller Machine Gun Performance ------------- Evolutions (0) 0 Regions Visited (2) 400 Robots Destroyed (9) 45 Value Destroyed (269) 269 Prototype IDs (0) 0 Alien Tech Used (0) 0 Bonus (0) 0 TOTAL SCORE: 714 Bonus ------- None Cogmind --------- Core Integrity 0/250 Matter 49/300 Energy 100/100 System Corruption 0% Temperature Cool (0) Movement Core (200) Ox3 Location -10/Subcaves Parts ------- > --- POWER (1) -------- (None) > --- PROPULSION (2) --- (None) > --- UTILITY (2) ------ (None) > --- WEAPON (2) ------- Battle Rifle Subdweller Shrapnel Launcher > --- INVENTORY (5) ---- Heat Sink Large Storage Unit Grenade Launcher Peak State ------------ > --- POWER ------------ Light Nuclear Core > --- PROPULSION ------- Light Treads Light Treads > --- UTILITY ---------- Small Storage Unit > --- WEAPON ----------- Assault Rifle Assault Rifle > --- INVENTORY -------- Heat Sink Large Storage Unit Light Assault Rifle Grenade Launcher [Rating: 8] Favorites ----------- Power Light Ion Engine Engine Light Ion Engine Power Core Light Nuclear Core Propulsion Light Treads Treads Light Treads Utility Small Storage Unit Storage Small Storage Unit Weapon Assault Rifle Ballistic Gun Assault Rifle Launcher Subdweller Shrapnel Launcher Build | -11 -10 -10 ------- Run | Yrd Mat Sub Slots Evolved . | . . . Power . | . . . Propulsion . | . . . Utility . | . . . Weapon . | . . . Parts Attached 10 | 6 1 3 Power 2 | 1 1 . Engine 1 | 1 . . Core 1 | . 1 . Reactor . | . . . Propulsion 2 | 2 . . Treads 2 | 2 . . Leg . | . . . Wheel . | . . . Hover . | . . . Flight . | . . . Utility 1 | 1 . . Device . | . . . Storage 1 | 1 . . Processor . | . . . Hackware . | . . . Protection . | . . . Artifact . | . . . Weapon 5 | 2 . 3 Energy Gun . | . . . Energy Cannon . | . . . Ballistic Gun 4 | 2 . 2 Ballistic Cannon . | . . . Launcher 1 | . . 1 Special Weapon . | . . . Impact Weapon . | . . . Slashing Weapon . | . . . Piercing Weapon . | . . . Special Melee Weapon . | . . . Unidentified Prototypes . | . . . Parts Lost 7 | . 1 6 Power 2 | . 1 1 Propulsion 2 | . . 2 Utility . | . . . Weapon 3 | . . 3 Highest Loss Streak 6 | . 1 6 To Critical Strikes 1 | . . 1 Average Backups 3 | 1 3 3 Power . | . . . Propulsion . | . . . Utility 1 | . 1 2 Weapon 1 | 1 1 1 Tool/Special . | . . . Unused Backups 3 | . . 3 Power . | . . . Propulsion . | . . . Utility 2 | . . 2 Weapon 1 | . . 1 Tool/Special . | . . . Average Slot Usage (%) 76 | . 84 49 Engine 8 | . 11 . Core 3 | . 2 7 Treads 25 | . 28 16 Storage 12 | . 14 9 Ballistic Gun 24 | . 27 16 Peak Build Rating 8 | 6 8 8 Average Rating 5 | 4 6 4 On Entrance 4 | . 6 8 Naked Turns 40 | . . 40 Heaviest Build 14 | 12 14 14 Greatest Support 40 | 40 40 40 Greatest Overweight (x) . | . . . Average Overweight (x) . | . . . Largest Inventory Capacity 8 | 8 8 8 Average Capacity 7 | 6 8 6 Most Carried 5 | 5 5 5 Average Carried 3 | 1 3 3 Final Capacity 8 | 8 8 5 Final Carried 4 | 1 4 3 Class Distribution -------------------- 100% | Mutant Dominant Class ---------------- Mutant | -10/Materials Mutant | -10/Subcaves Resources | -11 -10 -10 ----------- Run | Yrd Mat Sub Matter Collected 356 | 237 119 . Remotely . | . . . Salvage Created 266 | . 224 42 Parts 19 | . 15 4 Haulers Intercepted . | . . . Recyclers Shooed 1 | . 1 . Parts Field Recycled . | . . . Retrieved Matter . | . . . Parts Self-Destructed . | . . . Prevented . | . . . Kills | -11 -10 -10 ------- Run | Yrd Mat Sub Combat Hostiles Destroyed 9 | . 7 2 Guns 7 | . 7 . AOE 2 | . . 2 Classes Destroyed 3 | . 2 1 Swarmer 3 | . 3 . Grunt 4 | . 4 . Subdweller 2 | . . 2 Best Kill Streak 2 | . 2 2 Combat Bots Only 2 | . 2 2 Max Kills in Single Turn 1 | . 1 1 Gunslinging . | . . . Exploded 1 | . . 1 Melee . | . . . Uniques/NPCs Destroyed . | . . . Combat | -11 -10 -10 -------- Run | Yrd Mat Sub Hostile Shots Fired 94 | . 44 50 Missed 26 | . 10 16 Hits 68 | . 34 34 Projectile 68 | . 34 34 Critical Strikes 1 | . . 1 Damage Taken 1055 | . 316 739 Core 264 | . 28 236 Absorbed by Shields . | . . . Core Remaining (%) 100 | 100 . . Volleys Fired 53 | . 34 19 Largest 2 | . 2 2 Hottest 65 | . 40 65 Shots Fired 95 | . 68 27 Gun 91 | . 68 23 Cannon . | . . . Launcher 4 | . . 4 Special . | . . . Kinetic 95 | . 68 27 Thermal . | . . . Explosive . | . . . Electromagnetic . | . . . Robot Hit Streak 8 | . 6 8 Robot Miss Streak 3 | . 3 2 Penetration Max . | . . . Secondary Targets . | . . . Shots Hit Robots 57 | . 35 22 Core Hits 17 | . 11 6 Critical Kills . | . . . Critical Parts Destroyed 1 | . 1 . Critical Strikes 1 | . 1 . Destroy 1 | . 1 . Melee Attacks . | . . . Impact . | . . . Slashing . | . . . Piercing . | . . . Sneak Attacks . | . . . Combat Hostiles . | . . . Follow-up Attacks . | . . . Damage Inflicted 1176 | 1 474 701 Guns 677 | . 474 203 Cannons . | . . . Explosions 498 | . . 498 Melee . | . . . Ramming 1 | 1 . . Kinetic 1175 | . 474 701 Thermal . | . . . Explosive . | . . . Electromagnetic . | . . . Impact . | . . . Slashing . | . . . Piercing . | . . . Highest Corruption . | . . . Average Corruption . | . . . Corruption Purged . | . . . Corruption Blocked . | . . . Overload Shots . | . . . Overflow Damage 14 | . . 14 Projectiles . | . . . Explosions 14 | . . 14 Melee . | . . . Knockbacks . | . . . Impact . | . . . Kinetic . | . . . Secondary . | . . . Self-Inflicted Damage 15 | . . 15 Shots 1 | . . 1 Rammed 2 | 1 1 . Targets Rammed 2 | 1 1 . Kicked . | . . . Crushed . | . . . Highest Temperature 2 | . 2 . Average Temperature 1 | . 1 . Received Heat Transfer 87 | . 81 6 Siege Activations . | . . . Martial Activations . | . . . Shielding Activations . | . . . Robots Disrupted . | . . . Combat Hostiles . | . . . Robots Corrupted . | . . . Combat Hostiles . | . . . Parts Fried . | . . . Impact Corruptions . | . . . Robots Melted . | . . . Combat Hostiles . | . . . Parts Melted . | . . . Heat Transferred . | . . . Parts Sabotaged . | . . . Parts Stolen . | . . . Parts Stripped . | . . . Power Chain Reactions . | . . . Alert | -11 -10 -10 ------- Run | Yrd Mat Sub Maximum Alert Level . | . . . Low Security (%) 100 | 100 100 . Level 1 . | . . . Level 2 . | . . . Level 3 . | . . . Level 4 . | . . . Level 5 . | . . . High Security . | . . . Max Security . | . . . Peak Influence 100 | . 100 . Initial . | . . . Average 37 | . 43 . Influence Increases 215 | . 215 . Destroy 0b10 Robot/C 140 | . 140 . Destroy Leader 30 | . 30 . Disable Machine 15 | . 15 . Lose Combat Pursuer 30 | . 30 . Influence Decreases 215 | . 154 61 Entered New Map 30 | . . 30 Time Decay 164 | . 144 20 Lost Part 21 | . 10 11 Squads Dispatched 1 | . 1 . Investigation . | . . . Extermination . | . . . Reinforcement 1 | . 1 . Assault . | . . . Garrison . | . . . Intercept . | . . . Searches Triggered . | . . . Construction Impeded . | . . . Haulers Reinforced . | . . . Active Scanning Responses . | . . . Cargo Convoy Interrupts . | . . . Stealth | -11 -10 -10 --------- Run | Yrd Mat Sub Distress Signals 2 | . 2 . Communications Jammed . | . . . Distress Signals . | . . . Times Spotted 18 | . 14 4 Peak Tracking Total 5 | . 5 4 Tactical Retreats 2 | . 2 . Traps | -11 -10 -10 ------- Run | Yrd Mat Sub Traps Triggered 1 | . 1 . Indirectly . | . . . Trap Hack Attempts . | . . . Triggered . | . . . Disarmed . | . . . Reprogrammed . | . . . Reused . | . . . Traps Extracted . | . . . Installed . | . . . Triggered . | . . . Machines | -11 -10 -10 ---------- Run | Yrd Mat Sub Machines Disabled 1 | . 1 . Max in Single Turn 1 | . 1 . Machines Repaired . | . . . Machines Dismantled . | . . . Machines Sabotaged . | . . . Overloaded Fab Kills . | . . . Hacking | -11 -10 -10 --------- Run | Yrd Mat Sub Machines Accessed 3 | . 2 1 Terminals 2 | . 2 . Fabricators . | . . . Repair Stations . | . . . Recycling Units . | . . . Scanalyzers . | . . . Garrison Access . | . . . Total Hacks 6 | . 5 1 Successful 3 | . 2 1 Failed 3 | . 3 . Catastrophic 1 | . 1 . Database Lockouts . | . . . Manual 3 | . 3 . Terminals 5 | . 5 . Fabricators . | . . . Repair Stations . | . . . Recycling Units . | . . . Scanalyzers . | . . . Garrison Access . | . . . Terminal Hacks 2 | . 1 1 Open Door 1 | . . 1 Locate Traps 1 | . 1 . Fabricator Hacks . | . . . Repair Station Hacks . | . . . Recycling Unit Hacks . | . . . Scanalyzer . | . . . Garrison Access Hacks . | . . . Unauthorized Hacks 1 | . 1 . Terminals 1 | . 1 . Botnet 1 | . 1 . Fabricators . | . . . Repair Stations . | . . . Recycling Units . | . . . Scanalyzers . | . . . Garrison Access . | . . . Data Cores Recovered . | . . . Used . | . . . Hacking Detections 2 | . 2 . Full Trace Events . | . . . Feedback Events . | . . . Feedback Blocked . | . . . Robot Schematics Acquired . | . . . Robots Built . | . . . Authchips . | . . . Time . | . . . Total Robot Build Rating . | . . . Part Schematics Acquired . | . . . Parts Built . | . . . Authchips . | . . . Time . | . . . Total Part Build Rating . | . . . Parts Repaired . | . . . Time . | . . . Parts Recycled . | . . . Recycled Matter . | . . . Retrieved Matter . | . . . Retrieved Components . | . . . Parts Scanalyzed . | . . . Part Schematics Acquired . | . . . Parts Damaged . | . . . Bothacking | -11 -10 -10 ------------ Run | Yrd Mat Sub Used RIF Installer . | . . . Robots Hacked . | . . . Non-combat . | . . . Combat . | . . . Robot Hacks Applied . | . . . Relay Couplers Released . | . . . Fabnet Peak Effective % . | . . . Robots Rewired . | . . . Allies Hacked . | . . . Hacks Repelled . | . . . Allies | -11 -10 -10 -------- Run | Yrd Mat Sub Total Allies . | . . . Largest Group . | . . . Highest-Rated Group . | . . . Highest-Rated Ally . | . . . Total Orders . | . . . Ally Attacks . | . . . Total Damage . | . . . Kills . | . . . Allies Corrupted . | . . . Allies Melted . | . . . Intel | -11 -10 -10 ------- Run | Yrd Mat Sub Active Infowar (turns) . | . . . Robot Analysis Total . | . . . Derelict Logs Recovered 1 | . . 1 Drone Launches . | . . . Drone Recoveries . | . . . Exploration | -11 -10 -10 ------------- Run | Yrd Mat Sub Turns Passed 645 | 63 448 134 Spaces Moved 351 | 41 206 104 Core 89 | 15 . 74 Treads 262 | 26 206 30 Legs . | . . . Wheels . | . . . Hover . | . . . Flight . | . . . Fastest Speed 50 | 50 160 50 Average Speed 132 | 119 160 81 Slowest Speed 160 | 160 160 160 Overloaded Moves . | . . . Propulsion Burnouts . | . . . Robots Hopped . | . . . Potential Cave-ins . | . . . Cave-ins Triggered . | . . . Exploration Rate (%) 19 | 4 43 11 Regions Visited 2 Branch Regions 1 Pre-discovered Areas 1 | . . 1 Known Exits Taken . | . . . Unknown Exits Taken 2 | 1 1 . Scrap Searched . | . . . Spaces Dug . | . . . Terrain Destroyed 35 | . . 35 Melee . | . . . Projectile . | . . . AOE 35 | . . 35 Terrain Rammed . | . . . Walls Destroyed . | . . . Machines Disabled . | . . . Actions | -11 -10 -10 --------- Run | Yrd Mat Sub Total 439 | 54 256 129 Wait 7 | . 7 . Move 349 | 40 205 104 Hop . | . . . Pick Up 15 | 7 6 2 Fast Attach . | . . . Attach 12 | 6 3 3 Detach . | . . . Swap . | . . . Drop 1 | . . 1 Fire 53 | . 34 19 Melee . | . . . Ram . | . . . Kick . | . . . Crush 2 | 1 1 . Escape Stasis . | . . . Rewire . | . . . Trap . | . . . Miscellaneous . | . . . Route ------- -11/Scrapyard -10/Materials (discovered 2 exits: [*Mat] / *Sub) -10/Subcaves History --------- Turn | Location | Event 11 | -11/Scrapyard | Discovered new exit (range 16) 64 | -11/Scrapyard | Entered Materials 327 | -10/Materials | Build established: Mutant 499 | -10/Materials | Discovered new exit (range 16) 506 | -10/Materials | Discovered new exit (range 5) 512 | -10/Materials | Entered Subcaves 513 | -10/Subcaves | Approached by a straggling Scientist 514 | -10/Subcaves | A swath of the cavern ceiling suddenly collapsed 516 | -10/Subcaves | Learned location of Zion (-7) 559 | -10/Subcaves | Shifting Twisted Machinery released Sub. Shrapnel Launcher 561 | -10/Subcaves | Shifting Twisted Machinery released Battle Rifle 587 | -10/Subcaves | Core integrity fell below 50% 623 | -10/Subcaves | Lost 6 parts (1p2n3w) 636 | -10/Subcaves | Core integrity fell below 20% 646 | -10/Subcaves | Destroyed by BS-FIV(R) with Subdweller Machine Gun Last Messages --------------- Twisted Machinery. Battle Rifle falls loose from the Twisted Machinery. CS-F1M(c): "I think it's somewhere east of here" 00569_ Assault Rifle destroyed. 00570_ Lgt. Nuclear Core destroyed. 00571_ Assault Rifle destroyed. 00578_ Lgt. Treads destroyed. 00592_ Critical hit (Destroy). 00592_ Lgt. Assault Rifle destroyed. 00593_ Dropped Sml. Storage Unit. 00596_ CS-F1M(c) destroyed. 00597_ Acquired Sub. Shrapnel Launcher. 00599_ Acquired Battle Rifle. 00624_ Connecting with UFD SUBCON Station... 00624_ Current location identified: Subcaves >>Open Door Sealed Heavy Doors opened. 00641_ Destroyed Sub. Power Source. 00641_ OP-116(R) destroyed. Map ----- +----------------------------------------------------+ | | | | | | | | | | | | | | | | | | | | | ?????????????????????????????????????????????????? | | ?????????????????????????????????????????????????? | | ?????????????????????########????????????????????? | | ?????????????????????#""""""#????????????????????? | | ?????????????????????#""""X"#????????????????????? | | ?????????????????????# "#????????????????????? | | ?????????????????????# "#????????????????????? | | ?????????????????????#" """"#????????????????????? | | ?????????????????????## #####????????????????????? | | ?????????????????????#" ""#??????????????????????? | | ?????????????????????#X ##?????????????????????? | | ????????????????????### ##????????????????????? | | ????????????????????# #### #????????????????????? | | ????????????????????# ## ###???????????????????? | | #?????????????###???# ### #???????????????????? | | ##???????????## ##??# @ ###?????????????????? | | "############# ##?# ##????????????????? | | "## ## # # #?# ; ##???????????????? | | " ## #???????????????? | | ! #???????????????? | | # ## "# # #### ! ##???????????????? | | ##""## ## #??## RR #????????????????? | | "" ## ###?## #???????????????? | | "" #?# #??????????????? | | "" # ### #??????????????? | | "######## ## ; ##??????????????? | | ???????# # # ## #???????????????? | | "???????# #####?# #???????????????? | | "??????# #??# #??????????????? | | "??????# #??# #??????????????? | | ???? ### ### #??# #??????????????? | | ??"" ??###?# #???# ??????????????? | | ???### ??????# #???? ?????????????? | | ?????# ??????### ###???? ### ?????????????? | | ?????## ????????? ##??????##??????????????????? | | ??????## ????????? ???????????????????????????? | | ???????# ?????????? ##??????????????????????????? | | ??????????????????? ???????????????????????????? | | ??????????????????? #??????????????????????????? | | ??????????????????? #??????????????????????????? | +----------------------------------------------------+ Best States ------------- Heat Dissipation 25 Energy Generation 14 Energy Capacity 160 Matter Stores 282 Matter Capacity 300 Sight Range 16 Terrain Scan Density 10 Evasion (%) 50 Recoil Reduction 2 Item Schematics ----------------- None Robot Schematics ------------------ None Fabricated ------------ Nothing Repaired ---------- Nothing Alien Tech Used ----------------- None Achievements -------------- None Challenges ------------ None Game ------ Seed VampiricCarbideBlasthammer Manual? 0 Play Time 00:06:59 Cumulative 280.0 hours Start 2025.05.18 @ 07:00:07 End 2025.05.18 @ 07:05:23 Sessions 1 Manual Loads 0 Difficulty Rogue Special Mode None Game No. 220 Rogue 211 Adventurer 9 Explorer 0 Win Type - Total 3 Types 2/0/0/1/0/0/0/0/0/0 Lore% 84 Gallery% 72 Achievement% 66 Wizard Run 0 Options --------- Layout 1 ASCII 0 Keyboard 0 Movement Numpad Keybinds 0 Fullscreen 1 Font 24/Smallcaps Map View 50x35 Zoom Use 0% Tactical HUD 1 Map Filters NONE Filters NONE Steam 1 RUN: 4eca5162-2d60-46a5-9184-08e743a15fb4